bitfinex-derivatives/quotes_ETHF0:USTF0_20241007
["timestamp","ask_amount","ask_price","bid_price","bid_amount"]
[1728319211404,3.2078,2475.5,2474.6,5.5787]
[1728319211405,0.40412,2474.9,2474.6,5.5787]
[1728319211608,0.40412,2474.9,2474.8,0.40412]
[1728319212907,0.40409,2475.1,2475.0,0.40408]
[1728319213097,4.99948,2475.2,2475.1,0.40408]
[1728319213503,4.5954,2475.2,2474.8,3.15]
[1728319213703,0.40411,2475.0,2474.9,0.4041]
[1728319214407,3.8796,2475.2,2474.8,1.01032]
[1728319214606,0.40408,2475.1,2475.0,0.40409]
[1728319214908,0.4041,2475.0,2474.9,0.4041]
[1728319215405,0.40409,2475.1,2475.0,0.40408]
[1728319219517,0.40409,2475.1,2474.7,4.21816]
[1728319219518,4.28366,2475.2,2475.1,0.40408]
[1728319220307,3.8796,2475.2,2475.1,0.40408]
[1728319220616,3.61186,2475.2,2475.1,0.40408]
[1728319220912,3.61186,2475.2,2475.1,1.08528]
[1728319221417,0.40406,2475.2,2475.1,1.08528]
[1728319222112,6.3578,2475.3,2474.7,6.3578]
[1728319222307,0.40413,2474.8,2474.7,1.80413]
[1728319222619,0.40413,2474.8,2474.7,1.39973]
[1728319222912,0.7081,2474.9,2474.7,0.9956]
[1728319223214,1.11223,2474.9,2474.8,0.40413]
[1728319224317,1.11223,2474.9,2474.7,0.9956]
[1728319224318,0.40413,2474.8,2474.7,1.09214]
[1728319226709,1.3744,2474.9,2474.4,45.01829]
[1728319226917,0.40418,2474.6,2474.5,0.40417]
[1728319227308,1.08418,2474.6,2474.5,0.40417]
[1728319229016,1.77853,2474.9,2474.8,0.40413]
[1728319229220,1.77853,2474.9,2474.4,1.01049]
[1728319229221,0.40414,2474.8,2474.7,0.40413]
[1728319230216,1.4126,2474.9,2474.6,0.6897]
[1728319230417,1.4126,2474.9,2474.8,0.40413]
[1728319230922,1.4126,2474.9,2474.6,0.6897]
[1728319231115,0.40415,2474.7,2474.6,1.09385]
[1728319231316,1.4126,2474.9,2474.6,0.6897]
[1728319231521,1.81672,2474.9,2474.8,0.40413]
[1728319232219,1.4126,2474.9,2474.8,0.40413]
[1728319233211,0.40407,2475.2,2475.1,0.40408]
[1728319233415,0.6592,2475.2,2475.1,0.40408]
[1728319234021,1.06815,2475.3,2475.2,0.40406]
[1728319234224,0.7107,2475.4,2475.3,0.40405]
[1728319234225,0.7125,2475.4,2475.3,0.40405]
[1728319234421,3.9104,2475.6,2475.3,0.40405]
[1728319234626,0.7181,2475.7,2475.6,0.404]
[1728319234627,0.7125,2475.7,2475.6,0.404]
[1728319234824,0.40396,2475.9,2475.8,0.40396]
[1728319235731,1.72234,2476.1,2475.6,40.8]
[1728319236228,0.40396,2475.9,2475.8,0.40396]
[1728319236629,0.40397,2475.8,2475.7,0.40397]
[1728319237244,1.72234,2476.1,2475.5,42.1856]
[1728319237530,0.40399,2475.7,2475.6,0.40399]
[1728319240134,3.15,2476.0,2475.5,1.3856]
[1728319240330,4.15987,2476.0,2475.5,1.3856]
[1728319240535,1.11643,2476.1,2476.0,0.40393]
[1728319241030,5.15483,2476.1,2476.0,0.40393]
[1728319241234,1.11642,2476.1,2476.0,0.40393]
[1728319241737,0.40394,2476.0,2475.9,0.40394]
[1728319242937,1.11642,2476.1,2476.0,0.40393]
[1728319243435,0.4039,2476.3,2476.2,0.40389]
[1728319243631,0.40391,2476.2,2476.1,0.4039]
[1728319244031,1.4192,2476.4,2475.9,0.7012]
[1728319244032,0.4039,2476.3,2476.2,0.40389]
[1728319245144,1.4192,2476.4,2476.0,0.7004]
[1728319245340,0.40388,2476.3,2476.2,0.4039]
[1728319248141,2.42889,2476.4,2476.0,0.7004]
[1728319248446,2.42889,2476.4,2475.9,1.71107]
[1728319248447,0.40393,2476.0,2475.9,0.40394]
[1728319252258,0.40397,2475.8,2475.7,1.07677]
[1728319252447,0.40397,2475.8,2475.7,0.40397]
[1728319252648,1.3815,2475.9,2475.6,3.2078]
[1728319252649,0.40395,2475.9,2475.8,0.40397]
[1728319252948,0.40394,2476.0,2475.9,0.40393]
[1728319254555,0.40395,2475.9,2475.8,0.40395]
[1728319254752,1.71031,2476.1,2475.6,3.2078]
[1728319254753,0.7005,2476.1,2475.6,3.2078]
[1728319254958,0.40398,2475.8,2475.7,0.40397]
[1728319259155,0.40398,2475.7,2475.6,3.61179]
[1728319259554,1.00991,2475.9,2475.8,0.40395]
[1728319259555,0.40397,2475.9,2475.8,0.40395]
[1728319260454,1.08494,2476.0,2475.9,0.40395]
[1728319261048,0.40396,2475.9,2475.8,0.40395]
[1728319261456,0.40398,2475.8,2475.7,0.40396]
[1728319262459,1.08494,2476.0,2475.6,3.2078]
[1728319262460,0.681,2476.0,2475.6,3.2078]
[1728319262659,1.08495,2476.0,2475.9,0.40395]
[1728319263261,0.40397,2475.9,2475.8,0.40395]
[1728319263563,0.40397,2475.9,2475.8,0.40396]
[1728319263760,0.681,2476.0,2475.9,0.40395]
[1728319263956,1.08493,2476.0,2475.9,0.40395]
[1728319265053,0.40396,2475.9,2475.8,0.40395]
[1728319265250,1.08495,2476.0,2475.9,0.40395]
[1728319266456,0.681,2476.0,2475.6,4.2178]
[1728319266660,0.681,2476.0,2475.9,0.40395]
[1728319266863,1.10443,2476.1,2476.0,0.40393]
[1728319267269,0.40393,2476.0,2475.9,1.10034]
[1728319268764,0.7005,2476.1,2475.9,0.6964]
[1728319268959,0.7005,2476.1,2476.0,0.40393]
[1728319268960,1.10443,2476.1,2476.0,0.40393]
[1728319269661,0.40393,2476.1,2476.0,0.40393]
[1728319269869,0.40393,2476.1,2476.0,1.07383]
[1728319270268,3.2078,2476.2,2476.1,0.40392]
[1728319270470,3.2078,2476.2,2476.1,3.55392]
[1728319270967,3.2078,2476.2,2476.1,0.40392]
[1728319271262,3.6117,2476.2,2476.1,0.40392]
[1728319271858,0.40392,2476.1,2476.0,1.07382]
[1728319275469,0.40392,2476.1,2476.0,0.40392]
[1728319278173,3.15,2476.3,2475.9,1.3787]
[1728319278376,0.40392,2476.2,2476.1,0.4039]
[1728319279575,0.7074,2476.4,2476.1,3.15]
[1728319279763,0.094,2476.7,2476.3,3.15]
[1728319279963,0.094,2476.9,2476.6,0.40383]
[1728319280169,0.6782,2477.2,2476.7,4.83304]
[1728319280370,3.2078,2477.4,2476.9,4.15947]
[1728319280675,0.40373,2477.3,2477.2,0.40372]
[1728319280872,0.78348468,2477.3,2477.0,0.6666]
[1728319281373,0.78348468,2477.3,2476.5,4.69484]
[1728319281374,0.40383,2476.6,2476.5,4.69484]
[1728319281675,0.40382,2476.8,2476.7,0.40381]
[1728319281876,0.40383,2476.7,2476.6,0.40382]
[1728319283677,2.46929,2476.9,2476.8,0.4038]
[1728319283883,1.75549,2476.9,2476.8,0.4038]
[1728319284276,0.40381,2476.8,2476.7,0.4038]
[1728319284780,1.3517,2476.9,2476.5,3.15]
[1728319284979,1.3517,2476.9,2476.6,0.40383]
[1728319284980,0.40384,2476.7,2476.6,0.40383]
[1728319287885,1.00955,2476.8,2476.4,0.6735]
[1728319288087,0.40383,2476.7,2476.6,0.40382]
[1728319288478,1.10563,2476.7,2476.6,0.40382]
[1728319289581,0.40385,2476.6,2476.5,0.40384]
[1728319290171,1.10563,2476.7,2476.6,0.40383]
[1728319290381,1.3517,2476.9,2476.5,3.15]
[1728319290582,0.40382,2476.8,2476.7,0.40381]
[1728319290884,1.3517,2476.9,2476.5,3.15]
[1728319291082,1.3517,2476.9,2476.8,0.4038]
[1728319291678,5.3893,2476.9,2476.8,0.4038]
[1728319291878,0.40382,2476.7,2476.6,0.40382]
[1728319292185,2.36119,2476.9,2476.4,0.6735]
[1728319292379,0.40381,2476.8,2476.7,0.40381]
[1728319293384,0.40383,2476.7,2476.6,0.40382]
[1728319294577,0.40382,2476.8,2476.7,0.40381]
[1728319294782,3.2078,2477.1,2476.7,3.15]
[1728319294979,0.40373,2477.3,2476.8,6.25211]
[1728319295179,1.4411,2477.5,2477.0,3.15]
[1728319295381,1.7508,2477.5,2477.4,0.4037]
[1728319295877,0.40372,2477.4,2477.3,0.40371]
[1728319296283,1.3471,2477.5,2477.2,0.7038]
[1728319296584,2.35634,2477.5,2477.2,0.7038]
[1728319296885,0.40372,2477.4,2477.3,0.40371]
[1728319297084,0.40372,2477.4,2477.3,1.09161]
[1728319297585,3.61148,2477.6,2477.5,0.40369]
[1728319298589,3.2078,2477.6,2477.5,3.55369]
[1728319298886,0.40364,2477.9,2477.8,0.40363]
[1728319299190,1.3407,2478.0,2477.9,0.40362]
[1728319299792,3.2078,2478.3,2477.9,3.15]
[1728319300088,0.797,2478.4,2478.1,3.15]
[1728319300089,0.6666,2478.4,2478.1,3.15]
[1728319300282,0.6741,2478.6,2478.1,3.15]
[1728319300483,2.3495,2478.6,2478.2,0.40356]
[1728319300692,0.40355,2478.4,2478.3,0.40356]
[1728319301186,1.3407,2478.6,2478.1,3.15]
[1728319301380,3.15,2478.7,2478.3,0.40355]
[1728319301381,0.40354,2478.5,2478.3,0.40355]
[1728319301688,1.00875,2478.7,2478.3,3.15]
[1728319301991,4.5542,2478.9,2478.3,3.15]
[1728319302190,0.40356,2478.3,2478.2,0.40357]
[1728319302396,1.00879,2478.6,2478.1,3.15]
[1728319302696,1.00882,2478.5,2478.1,3.55358]
[1728319302988,0.40357,2478.2,2478.1,3.55358]
[1728319303383,0.40357,2478.2,2478.1,3.15]
[1728319303693,0.40359,2478.1,2478.0,0.4036]
[1728319304882,1.3464,2478.4,2477.9,3.8147]
[1728319305086,0.40357,2478.3,2478.2,0.40357]
[1728319305787,0.40357,2478.3,2477.9,3.8147]
[1728319305788,0.4036,2478.1,2478.0,0.4036]
[1728319307084,3.2078,2478.7,2477.9,3.8147]
[1728319307283,0.40354,2478.5,2478.4,0.40353]
[1728319307487,0.40352,2478.6,2478.5,0.40351]
[1728319307991,1.0088,2478.6,2478.3,0.6865]
[1728319308188,4.21655,2478.7,2478.0,3.15]
[1728319308189,3.2078,2478.7,2478.0,3.15]
[1728319308385,1.00879,2478.6,2478.0,3.8365]
[1728319308693,0.40356,2478.3,2478.2,0.40356]
[1728319309889,3.2078,2478.7,2478.0,3.8365]
[1728319310094,3.2078,2478.7,2478.3,0.40354]
[1728319310095,0.40355,2478.4,2478.3,0.40354]
[1728319310888,0.40359,2478.2,2478.1,0.40358]
[1728319311085,1.00886,2478.4,2478.0,3.8365]
[1728319311086,0.40359,2478.1,2478.0,1.0901]
[1728319311489,0.40365,2477.8,2477.6,6.3578]
[1728319311689,0.40365,2477.8,2477.7,0.40365]
[1728319311997,0.40363,2477.9,2477.8,0.40363]
[1728319312188,1.11692,2478.0,2477.9,0.40362]
[1728319312382,0.40363,2477.9,2477.8,0.40363]
[1728319313392,0.7133,2478.0,2477.6,0.6693]
[1728319313595,1.00914,2477.8,2477.5,3.8645]
[1728319313899,0.40367,2477.7,2477.6,0.40366]
[1728319314393,0.109,2478.4,2478.2,0.40357]
[1728319314595,1.77852,2479.2,2479.0,0.40344]
[1728319314804,1.3751,2479.2,2479.1,3.15]
[1728319315093,1.00858,2479.1,2478.4,3.2078]
[1728319315397,1.00858,2479.1,2478.5,3.55352]
[1728319315398,0.4035,2478.7,2478.5,3.55352]
[1728319315596,1.00858,2479.1,2478.5,3.15]
[1728319315597,0.6904,2478.6,2478.5,3.15]
[1728319315895,0.6904,2478.6,2478.5,3.55353]
[1728319316099,0.40353,2478.5,2478.3,3.55355]
[1728319316298,1.76662,2478.6,2478.3,3.15]
[1728319316497,1.76661,2478.6,2478.4,0.40353]
[1728319316697,1.3631,2478.6,2478.5,0.40353]
[1728319317995,1.76662,2478.6,2478.3,3.15]
[1728319318303,1.76662,2478.6,2478.4,0.40353]
[1728319318503,1.76662,2478.6,2478.5,0.40353]
[1728319319997,1.3631,2478.6,2478.5,0.40353]
[1728319320805,1.76661,2478.6,2478.5,0.40353]
[1728319321206,1.3631,2478.6,2478.5,0.40353]
[1728319321908,1.76661,2478.6,2478.5,0.40353]
[1728319322207,1.3631,2478.6,2478.5,0.40353]
[1728319322405,1.76661,2478.6,2478.5,0.40353]
[1728319322703,0.40354,2478.5,2478.4,0.40353]
[1728319323306,0.40354,2478.4,2478.3,3.55354]
[1728319323497,0.40354,2478.4,2478.3,0.40354]
[1728319323698,0.40357,2478.3,2478.2,0.40357]
[1728319323901,1.00884,2478.5,2477.9,4.15905]
[1728319324103,1.00884,2478.5,2478.3,0.40355]
[1728319324104,0.40355,2478.4,2478.3,0.40355]
[1728319324505,0.40356,2478.3,2478.2,0.40356]
[1728319324802,1.00886,2478.4,2477.8,3.3018]
[1728319325002,7.1852,2478.5,2477.8,3.3018]
[1728319325003,1.3906,2478.2,2477.9,3.15]
[1728319325207,0.6476,2478.1,2478.0,0.40361]
[1728319325402,0.40355,2478.4,2478.0,3.15]
[1728319325701,0.40355,2478.4,2477.9,1.3486]
[1728319325702,0.6476,2478.4,2478.3,3.55356]
[1728319325904,4.21639,2479.1,2478.8,0.40347]
[1728319326202,0.40349,2478.8,2478.7,0.40348]
[1728319326794,1.00866,2478.9,2478.6,3.15]
[1728319327001,2.39924,2479.0,2478.6,3.15]
[1728319327197,0.40347,2478.9,2478.8,0.40346]
[1728319328404,1.08347,2478.9,2478.8,0.40346]
[1728319328999,0.40348,2478.8,2478.7,0.40348]
[1728319329200,0.68,2478.9,2478.6,3.15]
[1728319329201,1.08347,2478.9,2478.8,0.40348]
[1728319329807,1.08347,2478.9,2478.8,3.55348]
[1728319329808,0.68,2478.9,2478.8,3.55348]
[1728319331606,1.08346,2478.9,2478.8,3.55348]
[1728319332003,0.68,2478.9,2478.8,3.55348]
[1728319335110,4.21627,2479.4,2478.8,3.55348]
[1728319335315,4.21627,2479.4,2479.2,3.15]
[1728319335316,2.4545,2479.3,2479.2,3.15]
[1728319336211,2.4545,2479.3,2479.2,2.7456]
[1728319337216,1.408,2479.3,2479.2,2.7456]
[1728319337412,0.7097,2479.3,2479.2,3.14901]
[1728319337618,1.1131,2479.3,2479.2,3.14901]
[1728319338115,1.1131,2479.3,2478.8,0.40347]
[1728319338116,0.40347,2478.9,2478.8,0.40347]
[1728319338417,0.40344,2479.1,2479.0,0.40344]
[1728319338713,0.40344,2479.1,2479.0,3.15]
[1728319339015,0.40344,2479.1,2479.0,3.55344]
[1728319339222,1.05081,2479.2,2479.1,0.40343]
[1728319339911,0.6474,2479.2,2479.1,0.40343]
[1728319340111,1.05081,2479.2,2479.1,1.06353]
[1728319342812,0.40346,2479.0,2478.9,0.40345]
[1728319343206,1.00858,2479.1,2479.0,0.40343]
[1728319343207,0.40343,2479.1,2479.0,0.40343]
[1728319343415,0.40346,2479.0,2478.9,0.40345]
[1728319343617,1.07316,2479.0,2478.9,0.40345]
[1728319344412,0.40346,2479.0,2478.9,0.40345]
[1728319344908,1.00858,2479.1,2478.9,0.40345]
[1728319345214,1.00858,2479.1,2478.7,4.87484]
[1728319345215,1.1131,2479.3,2479.2,0.40341]
[1728319345417,0.7097,2479.3,2479.2,0.40341]
[1728319345617,0.7097,2479.3,2479.2,3.55341]
[1728319345919,1.1131,2479.3,2479.2,3.55341]
[1728319346109,0.7097,2479.3,2479.2,3.55341]
[1728319346307,1.1131,2479.3,2479.2,3.55341]
[1728319346708,0.7097,2479.3,2479.2,3.55341]
[1728319346921,1.3607,2479.6,2479.2,3.55341]
[1728319347117,1.3607,2479.6,2479.5,3.55336]
[1728319347118,2.41726,2479.6,2479.5,3.55336]
[1728319347324,2.0139,2479.6,2479.5,3.55336]
[1728319348017,2.41725,2479.6,2479.5,3.55336]
[1728319348216,1.00841,2479.5,2478.9,0.094]
[1728319348416,7.36636,2479.2,2478.7,0.49749]
[1728319348618,0.40347,2478.9,2478.8,0.40347]
[1728319349119,0.40349,2478.7,2478.6,3.2078]
[1728319349319,0.40347,2478.9,2478.6,6.3578]
[1728319349524,0.40347,2478.9,2478.8,0.40347]
[1728319349715,6.22299,2479.1,2478.6,6.3578]
[1728319349912,0.40347,2478.9,2478.8,0.40347]
[1728319350111,2.41003,2479.1,2479.0,0.40344]
[1728319350312,2.0066,2479.1,2479.0,0.40344]
[1728319350716,1.3172,2479.1,2479.0,0.40344]
[1728319350919,1.76938,2479.5,2479.0,4.15861]
[1728319351118,0.40339,2479.4,2479.3,0.40339]
[1728319351314,0.40338,2479.4,2479.3,0.40338]
[1728319351522,1.76937,2479.5,2479.4,0.40338]
[1728319351920,5.80217,2479.5,2479.3,0.40339]
[1728319352115,1.76937,2479.5,2479.3,0.40339]
[1728319352327,0.40339,2479.4,2479.2,3.15]
[1728319352519,0.40339,2479.4,2479.2,3.5534]
[1728319352726,1.366,2479.5,2479.1,0.40341]
[1728319352727,0.4034,2479.3,2479.1,0.40341]
[1728319353026,0.40344,2479.1,2479.0,0.40344]
[1728319353220,0.6878,2479.2,2478.5,1.10281]
[1728319353221,0.6878,2479.2,2478.6,7.347]
[1728319353431,1.76184,2479.0,2478.9,0.40346]
[1728319353922,1.3584,2479.0,2478.6,3.15]
[1728319354128,0.40349,2478.7,2478.6,3.5535]
[1728319354622,0.40349,2478.7,2478.5,3.8888]
[1728319354623,1.00868,2478.9,2478.4,3.15]
[1728319354829,0.6878,2478.6,2478.2,7.40849477]
[1728319355027,0.6878,2478.6,2478.4,3.15]
[1728319355028,1.3584,2478.5,2478.4,3.15]
[1728319355229,0.6758,2478.5,2478.4,3.55354]
[1728319355430,3.61129,2478.8,2478.7,0.40349]
[1728319355431,3.2078,2478.8,2478.7,0.40349]
[1728319355627,3.61128,2478.8,2478.7,3.55349]
[1728319355827,3.2078,2478.8,2478.7,3.55349]
[1728319356229,1.07646,2478.9,2478.8,0.40348]
[1728319356426,1.07647,2478.9,2478.8,0.40348]
[1728319356730,1.07646,2478.9,2478.8,0.40348]
[1728319356923,1.07646,2478.9,2478.8,3.55348]
[1728319356924,0.673,2478.9,2478.8,3.55348]
[1728319358828,4.5628,2479.2,2478.8,3.55348]
[1728319359025,4.5628,2479.2,2479.1,3.55343]
[1728319359026,0.6822,2479.2,2479.1,3.55343]
[1728319361635,0.78090066,2479.6,2479.1,3.15]
[1728319361829,0.78090066,2479.6,2479.3,0.40338]
[1728319361830,0.40339,2479.4,2479.3,0.40338]
[1728319362029,1.07327,2479.5,2479.4,0.40338]
[1728319362743,0.4034,2479.4,2479.3,0.40339]
[1728319363142,0.6699,2479.5,2479.3,3.15]
[1728319363334,0.40342,2479.2,2479.1,0.40341]
[1728319363532,0.40341,2479.3,2479.0,3.15]
[1728319363840,1.08533,2479.1,2479.0,3.55344]
[1728319364035,0.6819,2479.1,2479.0,3.55344]
[1728319364538,0.6521,2479.3,2479.2,0.40341]
[1728319364539,1.0555,2479.3,2479.2,0.40341]
[1728319365840,0.40342,2479.2,2479.1,0.40342]
[1728319366143,0.40342,2479.2,2479.1,0.40341]
[1728319367139,0.6521,2479.3,2479.0,3.15]
[1728319367338,1.05551,2479.3,2479.2,0.40341]
[1728319367740,0.40342,2479.2,2479.1,0.40342]
[1728319369444,0.40343,2479.1,2479.0,3.55343]
[1728319370748,0.40343,2479.1,2479.0,0.40343]
[1728319371141,0.40346,2479.0,2478.9,0.40345]
[1728319371340,1.07706,2479.0,2478.9,0.40345]
[1728319371547,1.07706,2479.0,2478.8,3.2078]
[1728319371548,0.40346,2478.9,2478.8,3.2078]
[1728319371747,2.49962162,2478.9,2478.8,3.2078]
[1728319372056,1.71756,2478.9,2478.8,3.2078]
[1728319372442,1.71756,2478.9,2478.5,7.347]
[1728319372443,0.40351,2478.6,2478.5,0.40351]
[1728319372839,0.40354,2478.5,2478.4,0.40353]
[1728319373048,1.72844,2478.5,2478.4,0.40353]
[1728319373244,1.3249,2478.5,2478.2,3.2078]
[1728319373450,1.05276,2478.4,2478.3,0.40355]
[1728319373744,0.6492,2478.4,2478.3,3.55355]
[1728319373951,1.05274,2478.4,2478.3,0.40355]
[1728319374154,0.6492,2478.4,2478.3,0.40355]
[1728319374348,1.05274,2478.4,2478.3,0.40355]
[1728319376955,1.05274,2478.4,2478.3,0.40356]
[1728319377958,2.33375,2478.5,2478.4,0.40354]
[1728319377959,1.3249,2478.5,2478.4,0.40354]
[1728319378651,1.72843,2478.5,2478.4,0.40354]
[1728319380661,1.72843,2478.5,2478.2,6.3578]
[1728319380662,1.3249,2478.5,2478.2,3.2078]
[1728319380861,1.72844,2478.5,2478.4,0.40354]
[1728319381056,1.72844,2478.5,2478.2,6.3578]
[1728319381258,1.00886,2478.4,2477.8,3.244]
[1728319381459,0.40357,2478.3,2478.2,0.40356]
[1728319381663,0.40355,2478.4,2478.3,0.40355]
[1728319382070,4.5327,2478.5,2478.2,3.15]
[1728319382276,0.40356,2478.3,2478.2,3.55355]
[1728319382472,1.00891,2478.3,2477.8,0.7637]
[1728319382671,0.40362,2477.9,2477.8,0.40363]
[1728319382965,1.00901,2478.1,2477.6,0.6713]
[1728319383177,0.7048,2477.8,2477.7,3.61144]
[1728319383367,1.10844,2477.8,2477.7,3.61144]
[1728319383560,0.6903,2478.0,2477.9,0.40362]
[1728319383969,0.7048,2478.4,2477.9,3.15]
[1728319384265,2.50974,2478.4,2478.3,0.40356]
[1728319384471,0.6903,2478.4,2478.3,0.40356]
[1728319384668,3.2078,2478.5,2478.4,0.40354]
[1728319384966,1.09379,2478.7,2478.6,0.40351]
[1728319385171,0.6903,2478.7,2478.6,0.40351]
[1728319385369,1.81936,2478.9,2478.8,0.40348]
[1728319385570,0.40345,2479.0,2478.9,0.40344]
[1728319385880,1.09373,2479.1,2479.0,0.40344]
[1728319386066,0.6903,2479.1,2478.8,3.15]
[1728319386571,1.10822,2479.2,2479.1,0.40343]
[1728319386766,0.78050899,2479.3,2479.0,3.15]
[1728319386767,1.4015,2479.3,2479.2,0.40341]
[1728319386975,0.7085,2479.3,2479.2,0.40341]
[1728319387166,0.7085,2479.3,2479.1,0.6797]
[1728319387364,0.7085,2479.3,2479.2,0.40341]
[1728319388670,0.693,2479.6,2479.0,44.6297]
[1728319388874,0.40337,2479.5,2479.4,0.40337]
[1728319389367,1.00846,2479.4,2479.0,0.6797]
[1728319389572,1.00846,2479.4,2479.3,0.40338]
[1728319389573,0.40338,2479.4,2479.3,0.40338]
[1728319389764,4.43698,2479.4,2479.3,0.40338]
[1728319390265,4.0336,2479.4,2479.3,0.40338]
[1728319390467,1.4015,2479.6,2479.2,3.15]
[1728319390671,1.4015,2479.6,2479.4,3.15]
[1728319390672,1.11185,2479.6,2479.4,3.15]
[1728319390871,3.2078,2479.7,2479.4,3.15]
[1728319391071,0.7025,2479.9,2479.7,0.40332]
[1728319391372,0.7025,2479.9,2479.8,3.15]
[1728319391563,1.1058,2479.9,2479.8,3.55331]
[1728319391765,0.7025,2479.9,2479.8,3.55331]
[1728319392163,1.1058,2479.9,2479.8,3.15]
[1728319392572,5.74358,2479.9,2479.5,0.6699]
[1728319392868,0.40332,2479.8,2479.7,0.40333]
[1728319393070,3.2078,2480.1,2479.5,0.6699]
[1728319393267,3.2078,2480.1,2479.6,3.15]
[1728319393670,0.40331,2479.8,2479.7,0.40332]
[1728319393872,4.21599,2480.1,2479.6,3.15]
[1728319393873,0.40333,2479.7,2479.6,3.15]
[1728319394075,4.21599,2480.1,2479.5,0.6699]
[1728319394264,0.40336,2479.5,2479.4,3.55337]
[1728319394469,0.40336,2479.5,2479.4,3.15]
[1728319394672,0.6632,2479.6,2479.2,3.2078]
[1728319394673,0.6632,2479.6,2479.2,6.3578]
[1728319394973,0.40343,2479.1,2479.0,3.8176]
[1728319395377,0.40346,2478.9,2478.8,3.2078]
[1728319395672,0.40346,2478.9,2478.5,0.109]
[1728319395673,1.00867,2478.9,2478.5,3.2078]
[1728319395872,0.40348,2478.8,2478.7,0.40349]
[1728319396072,0.40346,2478.9,2478.7,4.23978]
[1728319396579,0.40346,2478.9,2478.7,1.08978]
[1728319396966,1.78876859,2479.3,2478.7,0.6863]
[1728319397174,0.78026859,2479.3,2478.7,0.6863]
[1728319397480,4.5399,2479.4,2478.9,0.40346]
[1728319397481,0.40345,2479.0,2478.9,0.40346]
[1728319397874,0.40345,2479.0,2478.8,0.40346]
[1728319398079,0.40348,2478.8,2478.7,0.6863]
[1728319398472,1.71783,2479.0,2478.6,0.4035]
[1728319398675,0.40352,2478.6,2478.4,0.40353]
[1728319398875,0.40352,2478.6,2478.3,0.6691]
[1728319399275,0.40352,2478.6,2478.5,0.40353]
[1728319400176,0.40353,2478.5,2478.4,0.40353]
[1728319400979,0.40352,2478.6,2478.5,0.40352]
[1728319402482,1.69992,2478.8,2478.4,0.40353]
[1728319402483,0.40353,2478.5,2478.4,0.40353]
[1728319403478,0.6461,2478.6,2478.3,0.6691]
[1728319403677,0.40351,2478.7,2478.6,0.4035]
[1728319404980,1.74079,2478.8,2478.7,0.40349]
[1728319406781,1.3373,2478.8,2478.5,3.2078]
[1728319407190,0.40353,2478.6,2478.5,0.40351]
[1728319407983,0.40352,2478.6,2478.5,0.40351]
[1728319408588,1.00874,2478.7,2478.4,0.40352]
[1728319408589,0.40354,2478.5,2478.4,0.40352]
[1728319409683,0.40352,2478.6,2478.5,0.40351]
[1728319412286,0.4035,2478.7,2478.6,0.40349]
[1728319413386,0.40352,2478.6,2478.5,0.40352]
[1728319413586,0.40354,2478.5,2478.4,0.40353]
[1728319418994,0.40356,2478.4,2478.3,0.40355]
[1728319419294,1.08436,2478.4,2478.3,0.40355]
[1728319419791,1.08436,2478.4,2478.1,45.64988]
[1728319419792,1.76346,2478.4,2478.1,44.6409]
[1728319420000,0.40357,2478.2,2478.1,0.40357]
[1728319420389,0.6852,2478.3,2477.9,7.36683]
[1728319420390,0.6852,2478.3,2477.9,6.3578]
[1728319420589,0.4036,2478.1,2478.0,0.40358]
[1728319420804,0.40361,2478.0,2477.9,3.61142]
[1728319420991,1.08271,2478.0,2477.9,3.61142]
[1728319421193,1.08271,2478.0,2477.9,3.2078]
[1728319427506,0.6791,2478.0,2477.6,0.6272]
[1728319427699,1.00911,2477.8,2477.5,6.3578]
[1728319427902,0.40367,2477.6,2477.5,6.76148]
[1728319428204,0.40367,2477.6,2477.5,6.3578]
[1728319428502,1.04227,2477.6,2477.5,6.3578]
[1728319429100,1.04227,2477.6,2477.5,3.2078]
[1728319430501,1.04227,2477.6,2477.5,6.3578]
[1728319431894,1.04227,2477.6,2477.5,3.2078]
[1728319433919,5.68383,2477.6,2477.2,3.2078]
[1728319434101,0.40372,2477.3,2477.2,3.2078]
[1728319434295,1.00927,2477.5,2477.0,44.68850843]
[1728319434296,0.40374,2477.2,2477.0,44.68850843]
[1728319434500,1.2694,2477.2,2477.0,44.28474843]
[1728319434701,1.67314,2477.2,2477.1,0.40375]
[1728319435912,0.40375,2477.1,2477.0,41.20376]
[1728319436502,0.40375,2477.1,2477.0,0.40376]
[1728319437000,0.40375,2477.1,2476.9,7.0268]
[1728319437001,1.2694,2477.2,2476.9,47.8268]
[1728319437204,0.40377,2477.0,2476.9,3.8768]
[1728319437598,0.40377,2477.0,2476.9,3.2078]
[1728319440618,4.44137,2477.0,2476.9,3.2078]
[1728319441021,4.44137,2477.0,2476.4,45.10567]
[1728319441022,10.0376,2477.0,2476.4,0.094]
[1728319441225,7.0003,2476.9,2476.2,3.2078]
[1728319441523,0.40388,2476.4,2476.3,0.40387]
[1728319441917,0.40388,2476.3,2476.2,6.3578]
[1728319442318,0.40397,2475.9,2475.8,3.61176]
[1728319442629,1.00976,2476.2,2475.8,3.61176]
[1728319442630,0.40392,2476.1,2476.0,0.40392]
[1728319443522,0.40394,2476.0,2475.9,0.40393]
[1728319444923,0.40395,2476.0,2475.9,0.40394]
[1728319445926,0.40397,2475.8,2475.7,0.6657]